[Event "Titled Tuesday Blitz July 27 2021"]
[White "Bortnyk, Olexandr"]
[Black "Vasquez Schroeder, Rodrigo"]
[WhiteFideId "14120828"]
[BlackFideId "3400042"]
[WhiteElo "2723"]
[BlackElo "2572"]
[Result "1-0"]
[Round "06"]
[TimeControl "180+1"]
[Date "2021.07.27"]
[WhiteClock "0:00:46"]
[BlackClock "0:00:21"]

1. d4 {[%clk 0:03:00]}  Nf6 {[%clk 0:02:57]} 2. Nc3 {[%clk 0:03:00]}  d6 {[%clk 0:02:56]} 3. e4 {[%clk 0:02:59]}  Nbd7 {[%clk 0:02:56]} 4. g4 {[%clk 0:02:57]}  h6 {[%clk 0:02:56]} 5. Nf3 {[%clk 0:02:51]}  e5 {[%clk 0:02:54]} 6. Rg1 {[%clk 0:02:52]}  c6 {[%clk 0:02:50]} 7. h4 {[%clk 0:02:27]}  g6 {[%clk 0:02:13]} 8. g5 {[%clk 0:02:23]}  hxg5 {[%clk 0:02:12]} 9. Bxg5 {[%clk 0:02:22]}  Be7 {[%clk 0:02:12]} 10. Bc4 {[%clk 0:02:20]}  b5 {[%clk 0:02:10]} 11. Bb3 {[%clk 0:02:17]}  b4 {[%clk 0:01:53]} 12. dxe5 {[%clk 0:02:17]}  dxe5 {[%clk 0:01:49]} 13. Na4 {[%clk 0:02:10]}  Nxe4 {[%clk 0:01:45]} 14. Qe2 {[%clk 0:02:09]}  Nxg5 {[%clk 0:01:29]} 15. hxg5 {[%clk 0:02:10]}  Qc7 {[%clk 0:01:25]} 16. O-O-O {[%clk 0:02:09]}  Bb7 {[%clk 0:01:13]} 17. Bxf7+ {[%clk 0:02:09]}  Kf8 {[%clk 0:01:05]} 18. Bxg6 {[%clk 0:01:58]}  Kg7 {[%clk 0:01:02]} 19. Bf5 {[%clk 0:01:43]}  Rad8 {[%clk 0:00:57]} 20. Bxd7 {[%clk 0:01:36]}  Rxd7 {[%clk 0:00:56]} 21. Rxd7 {[%clk 0:01:37]}  Qxd7 {[%clk 0:00:57]} 22. Qxe5+ {[%clk 0:01:37]}  Kg8 {[%clk 0:00:57]} 23. Rd1 {[%clk 0:01:37]}  Qe8 {[%clk 0:00:48]} 24. Nc5 {[%clk 0:01:32]}  Bc8 {[%clk 0:00:47]} 25. Ne4 {[%clk 0:01:31]}  Qf7 {[%clk 0:00:46]} 26. g6 {[%clk 0:01:26]}  Qe6 {[%clk 0:00:39]} 27. Nd6 {[%clk 0:00:55]}  Bd7 {[%clk 0:00:27]} 28. Nf7 {[%clk 0:00:51]}  Rh3 {[%clk 0:00:20]} 29. Qxe6 {[%clk 0:00:46]}  Bxe6 {[%clk 0:00:21]} 30. N3g5 {[%clk 0:00:46]} 1-0


[Site "https://www.chess.com"]

[Event "Titled Tuesday Blitz July 27 2021"]
[White "Chernobay, Artem"]
[Black "Rodchenkov, Vitaly"]
[WhiteFideId "4167406"]
[BlackFideId "4152964"]
[WhiteElo "2480"]
[BlackElo "2337"]
[Result "1-0"]
[Round "06"]
[TimeControl "180+1"]
[Date "2021.07.27"]
[WhiteClock "0:00:04"]
[BlackClock "0:00:13"]

1. d4 {[%clk 0:03:00]}  Nf6 {[%clk 0:02:59]} 2. c4 {[%clk 0:03:00]}  e6 {[%clk 0:02:59]} 3. Nf3 {[%clk 0:02:58]}  b6 {[%clk 0:02:59]} 4. g3 {[%clk 0:02:58]}  Bb7 {[%clk 0:02:59]} 5. Bg2 {[%clk 0:02:58]}  Be7 {[%clk 0:03:00]} 6. O-O {[%clk 0:02:59]}  O-O {[%clk 0:03:00]} 7. d5 {[%clk 0:03:00]}  exd5 {[%clk 0:03:00]} 8. Nh4 {[%clk 0:03:00]}  c6 {[%clk 0:03:00]} 9. cxd5 {[%clk 0:03:00]}  cxd5 {[%clk 0:03:00]} 10. Nc3 {[%clk 0:02:56]}  Na6 {[%clk 0:03:00]} 11. Nf5 {[%clk 0:02:53]}  Nc5 {[%clk 0:03:00]} 12. Nxd5 {[%clk 0:02:45]}  Nxd5 {[%clk 0:02:59]} 13. Bxd5 {[%clk 0:02:46]}  Bxd5 {[%clk 0:03:00]} 14. Qxd5 {[%clk 0:02:47]}  Bf6 {[%clk 0:03:00]} 15. Rb1 {[%clk 0:02:24]}  a5 {[%clk 0:02:58]} 16. Be3 {[%clk 0:02:09]}  Re8 {[%clk 0:02:54]} 17. Nd6 {[%clk 0:02:05]}  Re6 {[%clk 0:02:54]} 18. Rfd1 {[%clk 0:02:01]}  a4 {[%clk 0:02:48]} 19. Bxc5 {[%clk 0:01:34]}  bxc5 {[%clk 0:02:47]} 20. Nb7 {[%clk 0:01:34]}  Qe8 {[%clk 0:02:21]} 21. Nxc5 {[%clk 0:01:27]}  Rxe2 {[%clk 0:02:18]} 22. Nxd7 {[%clk 0:01:21]}  Bxb2 {[%clk 0:02:08]} 23. Nb6 {[%clk 0:01:21]}  Rb8 {[%clk 0:02:02]} 24. Nc4 {[%clk 0:01:15]}  a3 {[%clk 0:01:54]} 25. Nd6 {[%clk 0:01:09]}  Qe6 {[%clk 0:01:36]} 26. Qf3 {[%clk 0:01:08]}  Re5 {[%clk 0:01:19]} 27. Qxa3 {[%clk 0:00:43]}  Re1+ {[%clk 0:00:39]} 28. Rxe1 {[%clk 0:00:43]}  Qxe1+ {[%clk 0:00:40]} 29. Rxe1 {[%clk 0:00:43]}  Bxa3 {[%clk 0:00:40]} 30. Nc4 {[%clk 0:00:40]}  Bc5 {[%clk 0:00:40]} 31. Re5 {[%clk 0:00:29]}  Bb4 {[%clk 0:00:33]} 32. a4 {[%clk 0:00:28]}  Rc8 {[%clk 0:00:31]} 33. Nb6 {[%clk 0:00:23]}  Rc1+ {[%clk 0:00:30]} 34. Kg2 {[%clk 0:00:23]}  g6 {[%clk 0:00:31]} 35. Rb5 {[%clk 0:00:18]}  Be1 {[%clk 0:00:28]} 36. Rb2 {[%clk 0:00:11]}  Ra1 {[%clk 0:00:27]} 37. Kf3 {[%clk 0:00:11]}  Bc3 {[%clk 0:00:25]} 38. Rb5 {[%clk 0:00:11]}  Bd4 {[%clk 0:00:25]} 39. a5 {[%clk 0:00:09]}  Ra2 {[%clk 0:00:20]} 40. Nc4 {[%clk 0:00:04]}  Bxf2 {[%clk 0:00:19]} 41. h3 {[%clk 0:00:04]}  Bd4 {[%clk 0:00:16]} 42. Ke4 {[%clk 0:00:04]}  Bg1 {[%clk 0:00:15]} 43. g4 {[%clk 0:00:04]}  Kg7 {[%clk 0:00:15]} 44. Kd5 {[%clk 0:00:04]}  h6 {[%clk 0:00:13]} 45. Kc6 {[%clk 0:00:03]}  f5 {[%clk 0:00:14]} 46. gxf5 {[%clk 0:00:03]}  gxf5 {[%clk 0:00:14]} 47. Rxf5 {[%clk 0:00:03]}  Kg6 {[%clk 0:00:14]} 48. Rb5 {[%clk 0:00:03]}  h5 {[%clk 0:00:14]} 49. Kb7 {[%clk 0:00:04]}  h4 {[%clk 0:00:14]} 50. a6 {[%clk 0:00:04]}  Ra4 {[%clk 0:00:14]} 51. Nb6 {[%clk 0:00:04]}  Ra3 {[%clk 0:00:14]} 52. a7 {[%clk 0:00:04]}  Rf3 {[%clk 0:00:13]} 53. a8=Q {[%clk 0:00:04]} 1-0


[Site "https://www.chess.com"]

[Event "Titled Tuesday Blitz July 27 2021"]
[White "Chernomordik, Pavel"]
[Black "Provotorov, Ivan"]
[WhiteFideId "2804530"]
[BlackFideId "4154657"]
[WhiteElo "2273"]
[BlackElo "2270"]
[Result "1-0"]
[Round "06"]
[TimeControl "180+1"]
[Date "2021.07.27"]
[WhiteClock "0:00:52"]
[BlackClock "0:00:09"]

1. e4 {[%clk 0:03:00]}  e6 {[%clk 0:02:48]} 2. Nc3 {[%clk 0:03:00]}  d5 {[%clk 0:02:48]} 3. d4 {[%clk 0:02:59]}  Nf6 {[%clk 0:02:48]} 4. Bg5 {[%clk 0:02:58]}  Bb4 {[%clk 0:02:48]} 5. e5 {[%clk 0:02:58]}  h6 {[%clk 0:02:48]} 6. Bh4 {[%clk 0:02:58]}  g5 {[%clk 0:02:47]} 7. Bg3 {[%clk 0:02:57]}  Ne4 {[%clk 0:02:47]} 8. Ne2 {[%clk 0:02:57]}  c5 {[%clk 0:02:47]} 9. a3 {[%clk 0:02:56]}  Ba5 {[%clk 0:02:44]} 10. dxc5 {[%clk 0:02:46]}  Bxc3+ {[%clk 0:02:39]} 11. Nxc3 {[%clk 0:02:46]}  Nxc3 {[%clk 0:02:35]} 12. bxc3 {[%clk 0:02:45]}  Qa5 {[%clk 0:02:36]} 13. Qd2 {[%clk 0:02:45]}  Nd7 {[%clk 0:02:30]} 14. h4 {[%clk 0:02:39]}  Nxc5 {[%clk 0:02:30]} 15. hxg5 {[%clk 0:02:27]}  Ne4 {[%clk 0:02:30]} 16. Qd4 {[%clk 0:02:13]}  h5 {[%clk 0:01:49]} 17. Qb4 {[%clk 0:01:50]}  Qc7 {[%clk 0:01:45]} 18. Bf4 {[%clk 0:01:43]}  Nxc3 {[%clk 0:01:36]} 19. Bd3 {[%clk 0:01:40]}  Bd7 {[%clk 0:01:32]} 20. f3 {[%clk 0:01:32]}  h4 {[%clk 0:01:24]} 21. a4 {[%clk 0:01:22]}  a5 {[%clk 0:01:14]} 22. Qd4 {[%clk 0:01:20]}  Rc8 {[%clk 0:00:54]} 23. g6 {[%clk 0:01:14]}  Kf8 {[%clk 0:00:40]} 24. Bg5 {[%clk 0:01:08]}  fxg6 {[%clk 0:00:37]} 25. Bf6 {[%clk 0:01:01]}  Rh6 {[%clk 0:00:31]} 26. Qf4 {[%clk 0:00:57]}  Rh5 {[%clk 0:00:10]} 27. Bxg6 {[%clk 0:00:55]}  Rf5 {[%clk 0:00:09]} 28. Qh6+ {[%clk 0:00:52]} 1-0


[Site "https://www.chess.com"]

[Event "Titled Tuesday Blitz July 27 2021"]
[White "De Silva, L M S T"]
[Black "Arakhamia-Grant, Ketevan"]
[WhiteFideId "9953698"]
[BlackFideId "13600168"]
[WhiteElo "1621"]
[BlackElo "2177"]
[Result "1-0"]
[Round "06"]
[TimeControl "180+1"]
[Date "2021.07.27"]
[WhiteClock "0:01:44"]
[BlackClock "0:00:47"]

1. b3 {[%clk 0:03:00]}  Nf6 {[%clk 0:02:58]} 2. Bb2 {[%clk 0:03:00]}  g6 {[%clk 0:02:59]} 3. Nf3 {[%clk 0:03:00]}  Bg7 {[%clk 0:02:59]} 4. c4 {[%clk 0:03:00]}  d6 {[%clk 0:02:59]} 5. g3 {[%clk 0:02:59]}  e5 {[%clk 0:03:00]} 6. Bg2 {[%clk 0:02:59]}  O-O {[%clk 0:02:59]} 7. O-O {[%clk 0:03:00]}  c5 {[%clk 0:02:59]} 8. e3 {[%clk 0:02:59]}  Nc6 {[%clk 0:02:56]} 9. d4 {[%clk 0:02:59]}  exd4 {[%clk 0:02:43]} 10. exd4 {[%clk 0:03:00]}  Ne4 {[%clk 0:02:43]} 11. Nc3 {[%clk 0:02:43]}  Nxc3 {[%clk 0:02:38]} 12. Bxc3 {[%clk 0:02:44]}  Bg4 {[%clk 0:02:37]} 13. Qd3 {[%clk 0:02:31]}  Bxf3 {[%clk 0:02:36]} 14. Bxf3 {[%clk 0:02:32]}  cxd4 {[%clk 0:02:19]} 15. Bxc6 {[%clk 0:02:31]}  dxc3 {[%clk 0:02:17]} 16. Bxb7 {[%clk 0:02:31]}  Rb8 {[%clk 0:02:17]} 17. Bd5 {[%clk 0:02:30]}  Qb6 {[%clk 0:02:10]} 18. Rae1 {[%clk 0:02:29]}  Kh8 {[%clk 0:02:09]} 19. Re7 {[%clk 0:02:28]}  f5 {[%clk 0:02:08]} 20. Rfe1 {[%clk 0:02:25]}  f4 {[%clk 0:02:08]} 21. Rxg7 {[%clk 0:02:21]}  Kxg7 {[%clk 0:02:07]} 22. Re7+ {[%clk 0:02:19]}  Kh6 {[%clk 0:02:06]} 23. g4 {[%clk 0:02:09]}  Rbe8 {[%clk 0:02:01]} 24. Qh3+ {[%clk 0:02:04]}  Kg5 {[%clk 0:02:00]} 25. Qxh7 {[%clk 0:01:51]}  c2 {[%clk 0:00:51]} 26. h4+ {[%clk 0:01:43]}  Kxg4 {[%clk 0:00:51]} 27. Qxg6+ {[%clk 0:01:43]}  Kh3 {[%clk 0:00:49]} 28. Bg2+ {[%clk 0:01:43]}  Kxh4 {[%clk 0:00:47]} 29. Rh7# {[%clk 0:01:44]} 1-0


[Site "https://www.chess.com"]

[Event "Titled Tuesday Blitz July 27 2021"]
[White "Demchenko, Anton"]
[Black "Can, Emre"]
[WhiteFideId "4160258"]
[BlackFideId "6302181"]
[WhiteElo "2593"]
[BlackElo "2503"]
[Result "1-0"]
[Round "06"]
[TimeControl "180+1"]
[Date "2021.07.27"]
[WhiteClock "0:00:29"]
[BlackClock "0:00:05"]

1. e4 {[%clk 0:03:00]}  c5 {[%clk 0:02:58]} 2. Nf3 {[%clk 0:03:00]}  d6 {[%clk 0:02:57]} 3. d4 {[%clk 0:03:00]}  cxd4 {[%clk 0:02:57]} 4. Qxd4 {[%clk 0:03:00]}  Nf6 {[%clk 0:02:56]} 5. Nc3 {[%clk 0:03:00]}  Nc6 {[%clk 0:02:49]} 6. Qe3 {[%clk 0:03:00]}  g6 {[%clk 0:02:48]} 7. h3 {[%clk 0:03:00]}  Bg7 {[%clk 0:02:47]} 8. Bc4 {[%clk 0:03:01]}  O-O {[%clk 0:02:46]} 9. O-O {[%clk 0:03:01]}  Bd7 {[%clk 0:02:43]} 10. Rd1 {[%clk 0:03:00]}  Rc8 {[%clk 0:02:24]} 11. Qe2 {[%clk 0:02:59]}  a6 {[%clk 0:02:11]} 12. a4 {[%clk 0:02:58]}  Na5 {[%clk 0:01:56]} 13. Ba2 {[%clk 0:02:58]}  Qc7 {[%clk 0:01:47]} 14. Bg5 {[%clk 0:02:49]}  Rfe8 {[%clk 0:01:32]} 15. e5 {[%clk 0:02:37]}  dxe5 {[%clk 0:01:20]} 16. Nxe5 {[%clk 0:02:38]}  Be6 {[%clk 0:01:20]} 17. Bxe6 {[%clk 0:02:37]}  fxe6 {[%clk 0:01:20]} 18. Nd3 {[%clk 0:02:37]}  Qc6 {[%clk 0:01:02]} 19. Rab1 {[%clk 0:02:34]}  Nc4 {[%clk 0:00:59]} 20. Re1 {[%clk 0:02:21]}  Nd5 {[%clk 0:00:50]} 21. Ne4 {[%clk 0:02:19]}  e5 {[%clk 0:00:34]} 22. Rbd1 {[%clk 0:02:06]}  Nd6 {[%clk 0:00:32]} 23. Ndc5 {[%clk 0:02:04]}  Nxe4 {[%clk 0:00:30]} 24. Nxe4 {[%clk 0:02:04]}  Nb6 {[%clk 0:00:25]} 25. b3 {[%clk 0:01:40]}  Qxc2 {[%clk 0:00:21]} 26. Qe3 {[%clk 0:01:41]}  Qc6 {[%clk 0:00:19]} 27. h4 {[%clk 0:01:41]}  Nd5 {[%clk 0:00:17]} 28. Qh3 {[%clk 0:01:39]}  Nf6 {[%clk 0:00:14]} 29. Nd2 {[%clk 0:01:32]}  Qd7 {[%clk 0:00:13]} 30. Qxd7 {[%clk 0:01:25]}  Nxd7 {[%clk 0:00:13]} 31. Nc4 {[%clk 0:01:26]}  Nc5 {[%clk 0:00:13]} 32. Nxe5 {[%clk 0:01:07]}  Nxb3 {[%clk 0:00:11]} 33. Rd7 {[%clk 0:01:07]}  Nc5 {[%clk 0:00:10]} 34. Rxe7 {[%clk 0:01:04]}  h6 {[%clk 0:00:10]} 35. Nxg6 {[%clk 0:01:01]}  Red8 {[%clk 0:00:07]} 36. Be3 {[%clk 0:00:43]}  b5 {[%clk 0:00:06]} 37. axb5 {[%clk 0:00:39]}  axb5 {[%clk 0:00:07]} 38. Ra7 {[%clk 0:00:39]}  Re8 {[%clk 0:00:05]} 39. Ne7+ {[%clk 0:00:39]}  Rxe7 {[%clk 0:00:05]} 40. Rxe7 {[%clk 0:00:40]}  Nd3 {[%clk 0:00:05]} 41. Rb1 {[%clk 0:00:39]}  b4 {[%clk 0:00:05]} 42. Rd7 {[%clk 0:00:38]}  Rc3 {[%clk 0:00:05]} 43. Rb7 {[%clk 0:00:35]}  Bf8 {[%clk 0:00:05]} 44. g3 {[%clk 0:00:35]}  Rc2 {[%clk 0:00:05]} 45. Rd1 {[%clk 0:00:32]}  Ne5 {[%clk 0:00:05]} 46. Rd8 {[%clk 0:00:30]}  Nc6 {[%clk 0:00:05]} 47. Ra8 {[%clk 0:00:29]} 1-0


[Site "https://www.chess.com"]

[Event "Titled Tuesday Blitz July 27 2021"]
[White "Demidov, Mikhail"]
[Black "Oparin, Grigoriy"]
[WhiteFideId "4197143"]
[BlackFideId "24125890"]
[WhiteElo "2598"]
[BlackElo "2628"]
[Result "0-1"]
[Round "06"]
[TimeControl "180+1"]
[Date "2021.07.27"]
[WhiteClock "0:00:18"]
[BlackClock "0:00:39"]

1. Nf3 {[%clk 0:02:56]}  Nf6 {[%clk 0:02:55]} 2. g3 {[%clk 0:02:55]}  d5 {[%clk 0:02:55]} 3. Bg2 {[%clk 0:02:54]}  c5 {[%clk 0:02:56]} 4. O-O {[%clk 0:02:53]}  g6 {[%clk 0:02:56]} 5. c4 {[%clk 0:02:48]}  Bg7 {[%clk 0:02:57]} 6. cxd5 {[%clk 0:02:46]}  Nxd5 {[%clk 0:02:58]} 7. Nc3 {[%clk 0:02:45]}  O-O {[%clk 0:02:58]} 8. d3 {[%clk 0:02:39]}  Nc6 {[%clk 0:02:53]} 9. Nxd5 {[%clk 0:02:37]}  Qxd5 {[%clk 0:02:54]} 10. Be3 {[%clk 0:02:37]}  Bxb2 {[%clk 0:02:54]} 11. Rb1 {[%clk 0:02:35]}  Bf6 {[%clk 0:02:54]} 12. Qc2 {[%clk 0:02:34]}  b6 {[%clk 0:02:43]} 13. Nd4 {[%clk 0:02:09]}  Nxd4 {[%clk 0:02:42]} 14. Bxd4 {[%clk 0:01:51]}  Qxd4 {[%clk 0:02:43]} 15. Bxa8 {[%clk 0:01:50]}  c4 {[%clk 0:02:43]} 16. Qxc4 {[%clk 0:01:06]}  Qxc4 {[%clk 0:02:43]} 17. dxc4 {[%clk 0:01:07]}  Bf5 {[%clk 0:02:44]} 18. Bb7 {[%clk 0:00:56]}  Bxb1 {[%clk 0:02:43]} 19. Rxb1 {[%clk 0:00:57]}  Rd8 {[%clk 0:02:43]} 20. Kf1 {[%clk 0:00:55]}  Rd2 {[%clk 0:02:43]} 21. a4 {[%clk 0:00:53]}  e6 {[%clk 0:02:41]} 22. Rb3 {[%clk 0:00:50]}  Ra2 {[%clk 0:02:36]} 23. Bc6 {[%clk 0:00:50]}  Kf8 {[%clk 0:02:07]} 24. Rd3 {[%clk 0:00:48]}  a6 {[%clk 0:02:08]} 25. Rd7 {[%clk 0:00:34]}  Rc2 {[%clk 0:02:08]} 26. Rb7 {[%clk 0:00:28]}  Bd4 {[%clk 0:01:31]} 27. Rb8+ {[%clk 0:00:28]}  Kg7 {[%clk 0:01:30]} 28. Rb7 {[%clk 0:00:29]}  Rxc4 {[%clk 0:01:11]} 29. Be8 {[%clk 0:00:29]}  Kf8 {[%clk 0:01:12]} 30. Bxf7 {[%clk 0:00:23]}  Rc6 {[%clk 0:01:12]} 31. e3 {[%clk 0:00:18]}  Bf6 {[%clk 0:01:12]} 32. h4 {[%clk 0:00:18]}  Bd8 {[%clk 0:00:39]} 0-1


[Site "https://www.chess.com"]

[Event "Titled Tuesday Blitz July 27 2021"]
[White "Diaz Perez, Michel Alejandro"]
[Black "Libiszewski, Fabien"]
[WhiteFideId "3517179"]
[BlackFideId "616834"]
[WhiteElo "2337"]
[BlackElo "2440"]
[Result "0-1"]
[Round "06"]
[TimeControl "180+1"]
[Date "2021.07.27"]
[WhiteClock "0:00:11"]
[BlackClock "0:00:08"]

1. e4 {[%clk 0:03:00]}  c5 {[%clk 0:02:56]} 2. Nf3 {[%clk 0:03:00]}  Nc6 {[%clk 0:02:54]} 3. Bb5 {[%clk 0:03:00]}  Na5 {[%clk 0:02:51]} 4. O-O {[%clk 0:02:59]}  a6 {[%clk 0:02:50]} 5. Be2 {[%clk 0:03:00]}  d6 {[%clk 0:02:44]} 6. d4 {[%clk 0:02:59]}  cxd4 {[%clk 0:02:44]} 7. Nxd4 {[%clk 0:03:00]}  Nf6 {[%clk 0:02:44]} 8. Nc3 {[%clk 0:03:00]}  g6 {[%clk 0:02:37]} 9. Re1 {[%clk 0:02:36]}  Bg7 {[%clk 0:02:37]} 10. Bf1 {[%clk 0:02:35]}  O-O {[%clk 0:02:36]} 11. Nd5 {[%clk 0:02:26]}  e6 {[%clk 0:02:29]} 12. Nxf6+ {[%clk 0:02:19]}  Qxf6 {[%clk 0:02:29]} 13. Nf3 {[%clk 0:02:15]}  Qe7 {[%clk 0:02:18]} 14. Bg5 {[%clk 0:01:56]}  Qc7 {[%clk 0:02:15]} 15. c3 {[%clk 0:01:53]}  b5 {[%clk 0:01:41]} 16. Qd2 {[%clk 0:01:49]}  Bb7 {[%clk 0:01:41]} 17. Rad1 {[%clk 0:01:47]}  d5 {[%clk 0:01:40]} 18. e5 {[%clk 0:01:45]}  Nc4 {[%clk 0:01:40]} 19. Qc1 {[%clk 0:01:44]}  Nxe5 {[%clk 0:01:35]} 20. Nxe5 {[%clk 0:01:28]}  Bxe5 {[%clk 0:01:34]} 21. Bh6 {[%clk 0:01:25]}  Rfc8 {[%clk 0:01:30]} 22. Qe3 {[%clk 0:01:22]}  Bxh2+ {[%clk 0:01:15]} 23. Kh1 {[%clk 0:01:21]}  Bd6 {[%clk 0:01:15]} 24. Qg5 {[%clk 0:01:11]}  Be7 {[%clk 0:01:10]} 25. Qe3 {[%clk 0:01:10]}  Bc5 {[%clk 0:01:08]} 26. Qg5 {[%clk 0:00:53]}  Qe7 {[%clk 0:01:04]} 27. Qf4 {[%clk 0:00:52]}  Bd6 {[%clk 0:01:00]} 28. Qg4 {[%clk 0:00:52]}  Qf6 {[%clk 0:00:54]} 29. Re3 {[%clk 0:00:45]}  Qf5 {[%clk 0:00:49]} 30. Qxf5 {[%clk 0:00:44]}  gxf5 {[%clk 0:00:45]} 31. Bd3 {[%clk 0:00:43]}  Re8 {[%clk 0:00:39]} 32. Bc2 {[%clk 0:00:42]}  f6 {[%clk 0:00:38]} 33. Rde1 {[%clk 0:00:37]}  Kf7 {[%clk 0:00:38]} 34. Rh3 {[%clk 0:00:37]}  Rh8 {[%clk 0:00:34]} 35. Be3 {[%clk 0:00:34]}  h5 {[%clk 0:00:33]} 36. Bd4 {[%clk 0:00:34]}  h4 {[%clk 0:00:31]} 37. Rhe3 {[%clk 0:00:32]}  e5 {[%clk 0:00:30]} 38. Bb6 {[%clk 0:00:30]}  f4 {[%clk 0:00:30]} 39. Rd3 {[%clk 0:00:28]}  Rac8 {[%clk 0:00:30]} 40. Bb3 {[%clk 0:00:26]}  Rc4 {[%clk 0:00:19]} 41. Red1 {[%clk 0:00:27]}  Ke6 {[%clk 0:00:19]} 42. Kg1 {[%clk 0:00:19]}  Rg8 {[%clk 0:00:18]} 43. Kf1 {[%clk 0:00:19]}  e4 {[%clk 0:00:14]} 44. R3d2 {[%clk 0:00:18]}  Rg6 {[%clk 0:00:11]} 45. Bxc4 {[%clk 0:00:15]}  bxc4 {[%clk 0:00:11]} 46. Re2 {[%clk 0:00:16]}  Kd7 {[%clk 0:00:10]} 47. b3 {[%clk 0:00:16]}  cxb3 {[%clk 0:00:10]} 48. axb3 {[%clk 0:00:16]}  Kc6 {[%clk 0:00:08]} 49. Bd4 {[%clk 0:00:16]}  Be5 {[%clk 0:00:09]} 50. Ra2 {[%clk 0:00:15]}  Kd6 {[%clk 0:00:06]} 51. b4 {[%clk 0:00:14]}  Rg8 {[%clk 0:00:06]} 52. Ra5 {[%clk 0:00:13]}  Rc8 {[%clk 0:00:05]} 53. b5 {[%clk 0:00:13]}  axb5 {[%clk 0:00:05]} 54. Rxb5 {[%clk 0:00:12]}  Bc6 {[%clk 0:00:05]} 55. Rb6 {[%clk 0:00:13]}  Kd7 {[%clk 0:00:05]} 56. Bxe5 {[%clk 0:00:11]}  fxe5 {[%clk 0:00:05]} 57. c4 {[%clk 0:00:11]}  d4 {[%clk 0:00:04]} 58. Ra1 {[%clk 0:00:11]}  d3 {[%clk 0:00:04]} 59. Ra7+ {[%clk 0:00:10]}  Kd6 {[%clk 0:00:04]} 60. Ra5 {[%clk 0:00:09]}  Rd8 {[%clk 0:00:04]} 61. Rd5+ {[%clk 0:00:08]}  Kc7 {[%clk 0:00:04]} 62. Rxd8 {[%clk 0:00:09]}  Kxb6 {[%clk 0:00:04]} 63. Ke1 {[%clk 0:00:07]}  Ba4 {[%clk 0:00:03]} 64. Rh8 {[%clk 0:00:06]}  e3 {[%clk 0:00:03]} 65. fxe3 {[%clk 0:00:05]}  fxe3 {[%clk 0:00:04]} 66. Rd8 {[%clk 0:00:05]}  d2+ {[%clk 0:00:04]} 67. Ke2 {[%clk 0:00:05]}  d1=Q+ {[%clk 0:00:04]} 68. Rxd1 {[%clk 0:00:05]}  Bxd1+ {[%clk 0:00:05]} 69. Kxd1 {[%clk 0:00:06]}  Kc5 {[%clk 0:00:06]} 70. Ke2 {[%clk 0:00:07]}  Kxc4 {[%clk 0:00:06]} 71. Kxe3 {[%clk 0:00:08]}  Kd5 {[%clk 0:00:06]} 72. Kd3 {[%clk 0:00:08]}  e4+ {[%clk 0:00:07]} 73. Ke3 {[%clk 0:00:09]}  Ke5 {[%clk 0:00:07]} 74. Ke2 {[%clk 0:00:10]}  Kd4 {[%clk 0:00:06]} 75. Kf2 {[%clk 0:00:11]}  Kd3 {[%clk 0:00:06]} 76. Ke1 {[%clk 0:00:11]}  Ke3 {[%clk 0:00:07]} 77. Kf1 {[%clk 0:00:10]}  Kd2 {[%clk 0:00:07]} 78. g4 {[%clk 0:00:10]}  hxg3 {[%clk 0:00:07]} 79. Kg2 {[%clk 0:00:10]}  e3 {[%clk 0:00:07]} 80. Kxg3 {[%clk 0:00:11]}  e2 {[%clk 0:00:08]} 0-1


[Site "https://www.chess.com"]